[Event "*** Titled Tuesday Blitz"]
[Site "Chess.com"]
[Date "2020.04.21"]
[Round "8"]
[White "want2lose"]
[Black "youngKID"]
[Result "1/2-1/2"]
[WhiteElo "2916"]
[BlackElo "2810"]
[TimeControl "180+1"]
[EndTime "11:41:53 PDT"]
[Termination "Game drawn - insufficient material"]

1. Nf3 {[%clk 0:03:00.9]} 1... Nf6 {[%clk 0:02:59.8]} 2. g3 {[%clk 0:03:01.3]}
2... g6 {[%clk 0:02:58.6]} 3. Bg2 {[%clk 0:03:01.7]} 3... c5 {[%clk 0:02:59]} 4.
O-O {[%clk 0:03:02.6]} 4... Bg7 {[%clk 0:02:59.4]} 5. c4 {[%clk 0:03:02.5]} 5...
Nc6 {[%clk 0:02:59.9]} 6. d4 {[%clk 0:03:02.9]} 6... cxd4 {[%clk 0:02:59.4]} 7.
Nxd4 {[%clk 0:03:03.8]} 7... h5 {[%clk 0:03:00]} 8. Nc3 {[%clk 0:03:02.2]} 8...
h4 {[%clk 0:02:59.9]} 9. Bg5 {[%clk 0:02:39.2]} 9... hxg3 {[%clk 0:02:58.4]} 10.
hxg3 {[%clk 0:02:38.1]} 10... Rh5 {[%clk 0:02:48.2]} 11. Bxf6 {[%clk 0:02:23.2]}
11... Bxf6 {[%clk 0:02:47.6]} 12. e3 {[%clk 0:02:23.8]} 12... Bg7 {[%clk
0:02:18.7]} 13. Qd2 {[%clk 0:01:48.1]} 13... Kf8 {[%clk 0:02:14.7]} 14. Rad1
{[%clk 0:01:47.2]} 14... Ne5 {[%clk 0:02:10.8]} 15. b3 {[%clk 0:01:44.7]} 15...
d6 {[%clk 0:02:11]} 16. Nd5 {[%clk 0:01:38.6]} 16... Bg4 {[%clk 0:01:34.9]} 17.
f3 {[%clk 0:01:10]} 17... Bd7 {[%clk 0:01:34.7]} 18. f4 {[%clk 0:01:00.6]} 18...
Ng4 {[%clk 0:01:28.4]} 19. e4 {[%clk 0:00:45.7]} 19... Rc8 {[%clk 0:01:12.2]}
20. f5 {[%clk 0:00:38.1]} 20... gxf5 {[%clk 0:00:41.5]} 21. Nxf5 {[%clk
0:00:32.9]} 21... Bxf5 {[%clk 0:00:40.4]} 22. exf5 {[%clk 0:00:33.8]} 22... Rc5
{[%clk 0:00:32.8]} 23. Qe2 {[%clk 0:00:10.7]} 23... Rg5 {[%clk 0:00:15]} 24. Rf4
{[%clk 0:00:09]} 24... Nf6 {[%clk 0:00:11.2]} 25. Nxf6 {[%clk 0:00:04.9]} 25...
Bxf6 {[%clk 0:00:11.3]} 26. g4 {[%clk 0:00:03.7]} 26... b5 {[%clk 0:00:08.6]}
27. cxb5 {[%clk 0:00:02.8]} 27... Qb6 {[%clk 0:00:08.1]} 28. Qf2 {[%clk
0:00:02.2]} 28... Qxb5 {[%clk 0:00:08]} 29. Bf3 {[%clk 0:00:01.5]} 29... Be5
{[%clk 0:00:06.6]} 30. Re4 {[%clk 0:00:01.4]} 30... Rc3 {[%clk 0:00:06.7]} 31.
Kg2 {[%clk 0:00:01.2]} 31... Qa5 {[%clk 0:00:02.7]} 32. Qe2 {[%clk 0:00:01.3]}
32... Qc7 {[%clk 0:00:02.7]} 33. Rc4 {[%clk 0:00:01.3]} 33... Rxc4 {[%clk
0:00:02.8]} 34. bxc4 {[%clk 0:00:02.2]} 34... Qc5 {[%clk 0:00:02.7]} 35. Rb1
{[%clk 0:00:02.3]} 35... Kg7 {[%clk 0:00:01.8]} 36. Qd2 {[%clk 0:00:02.7]} 36...
Bf6 {[%clk 0:00:02]} 37. Qe2 {[%clk 0:00:02.7]} 37... Qxf5 {[%clk 0:00:02.1]}
38. Rd1 {[%clk 0:00:02.5]} 38... Qf4 {[%clk 0:00:02.4]} 39. Re1 {[%clk 0:00:03]}
39... Qe5 {[%clk 0:00:02.7]} 40. Qf2 {[%clk 0:00:02.9]} 40... Qc3 {[%clk
0:00:02.9]} 41. Re2 {[%clk 0:00:02.9]} 41... Qd4 {[%clk 0:00:02.9]} 42. Qxd4
{[%clk 0:00:02.6]} 42... Bxd4 {[%clk 0:00:03.8]} 43. Rxe7 {[%clk 0:00:03.3]}
43... Bc5 {[%clk 0:00:04.5]} 44. Rc7 {[%clk 0:00:02.8]} 44... Kf8 {[%clk
0:00:03.9]} 45. Kh3 {[%clk 0:00:03]} 45... f5 {[%clk 0:00:04.3]} 46. gxf5 {[%clk
0:00:02.8]} 46... Rxf5 {[%clk 0:00:05.2]} 47. Bd5 {[%clk 0:00:03.4]} 47... Ke8
{[%clk 0:00:04.5]} 48. a4 {[%clk 0:00:03.5]} 48... Rf2 {[%clk 0:00:04.7]} 49. a5
{[%clk 0:00:03.5]} 49... Ra2 {[%clk 0:00:04.6]} 50. Bc6+ {[%clk 0:00:03.5]}
50... Kd8 {[%clk 0:00:04.5]} 51. Rd7+ {[%clk 0:00:04]} 51... Kc8 {[%clk
0:00:05.1]} 52. Kg4 {[%clk 0:00:04.2]} 52... Rxa5 {[%clk 0:00:05.3]} 53. Kf5
{[%clk 0:00:04.5]} 53... Ra1 {[%clk 0:00:05.5]} 54. Ke6 {[%clk 0:00:04.7]} 54...
Re1+ {[%clk 0:00:05.8]} 55. Kf5 {[%clk 0:00:04.5]} 55... a5 {[%clk 0:00:05.4]}
56. Bb5 {[%clk 0:00:03.9]} 56... Ra1 {[%clk 0:00:03]} 57. Rh7 {[%clk 0:00:03.9]}
57... a4 {[%clk 0:00:03.5]} 58. Ke6 {[%clk 0:00:03.5]} 58... a3 {[%clk
0:00:03.4]} 59. Kd5 {[%clk 0:00:03.8]} 59... a2 {[%clk 0:00:01.9]} 60. Kc6
{[%clk 0:00:04.2]} 60... Kd8 {[%clk 0:00:02.4]} 61. Rh2 {[%clk 0:00:04]} 61...
Ke7 {[%clk 0:00:02.4]} 62. Re2+ {[%clk 0:00:04.1]} 62... Kf6 {[%clk 0:00:02.6]}
63. Ba4 {[%clk 0:00:04.3]} 63... Kf5 {[%clk 0:00:01.9]} 64. Bb3 {[%clk 0:00:04]}
64... Kf4 {[%clk 0:00:01.3]} 65. Bxa2 {[%clk 0:00:03.1]} 65... Rc1 {[%clk
0:00:01.1]} 66. Bb3 {[%clk 0:00:03.1]} 66... Rc3 {[%clk 0:00:01.5]} 67. Ba2
{[%clk 0:00:03]} 67... Kf3 {[%clk 0:00:01.9]} 68. Rh2 {[%clk 0:00:02.7]} 68...
Ra3 {[%clk 0:00:02.5]} 69. Bb1 {[%clk 0:00:02.7]} 69... Kg3 {[%clk 0:00:02.5]}
70. Re2 {[%clk 0:00:02.6]} 70... Rc3 {[%clk 0:00:02.5]} 71. Kd5 {[%clk
0:00:02.5]} 71... Rb3 {[%clk 0:00:02.3]} 72. Be4 {[%clk 0:00:02.7]} 72... Re3
{[%clk 0:00:02.6]} 73. Rc2 {[%clk 0:00:02.6]} 73... Ra3 {[%clk 0:00:02.1]} 74.
Rg2+ {[%clk 0:00:02.5]} 74... Kf4 {[%clk 0:00:02.3]} 75. Rg8 {[%clk 0:00:03.3]}
75... Re3 {[%clk 0:00:02.3]} 76. Rf8+ {[%clk 0:00:03.4]} 76... Kg3 {[%clk
0:00:02.9]} 77. Rf5 {[%clk 0:00:03.5]} 77... Re2 {[%clk 0:00:02.9]} 78. Rf6
{[%clk 0:00:03.5]} 78... Rd2+ {[%clk 0:00:02.8]} 79. Kc6 {[%clk 0:00:04]} 79...
Rd4 {[%clk 0:00:03.7]} 80. Bd5 {[%clk 0:00:04.4]} 80... Kg4 {[%clk 0:00:04]} 81.
Rg6+ {[%clk 0:00:04.8]} 81... Kf5 {[%clk 0:00:04.3]} 82. Rg2 {[%clk 0:00:05.3]}
82... Rf4 {[%clk 0:00:04.8]} 83. Rc2 {[%clk 0:00:05.2]} 83... Rd4 {[%clk
0:00:05.3]} 84. Re2 {[%clk 0:00:05.3]} 84... Rf4 {[%clk 0:00:05.9]} 85. Ra2
{[%clk 0:00:05.7]} 85... Rd4 {[%clk 0:00:06.5]} 86. Ra8 {[%clk 0:00:05.5]} 86...
Rf4 {[%clk 0:00:06.9]} 87. Re8 {[%clk 0:00:06]} 87... Kg4 {[%clk 0:00:07.3]} 88.
Kd7 {[%clk 0:00:06.3]} 88... Kg3 {[%clk 0:00:07.5]} 89. Rg8+ {[%clk 0:00:06.1]}
89... Kf2 {[%clk 0:00:07.6]} 90. Ke6 {[%clk 0:00:06.2]} 90... Ke3 {[%clk
0:00:08.5]} 91. Rg2 {[%clk 0:00:06]} 91... Kd4 {[%clk 0:00:08.7]} 92. Rd2+
{[%clk 0:00:06]} 92... Kc3 {[%clk 0:00:09]} 93. Rd1 {[%clk 0:00:06.9]} 93... Rd4
{[%clk 0:00:09]} 94. Ra1 {[%clk 0:00:06.1]} 94... Kb2 {[%clk 0:00:09.1]} 95. Ra8
{[%clk 0:00:05.7]} 95... Kc3 {[%clk 0:00:09.4]} 96. Rc8 {[%clk 0:00:06.1]} 96...
Rxc4 {[%clk 0:00:09.7]} 97. Bxc4 {[%clk 0:00:05.8]} 97... Kxc4 {[%clk
0:00:10.6]} 98. Rd8 {[%clk 0:00:06]} 98... Kd4 {[%clk 0:00:10.8]} 99. Rd7 {[%clk
0:00:06.9]} 99... Kc4 {[%clk 0:00:11.1]} 100. Kf5 {[%clk 0:00:07]} 100... d5
{[%clk 0:00:11.3]} 101. Ke5 {[%clk 0:00:07.5]} 101... d4 {[%clk 0:00:11.8]} 102.
Ke4 {[%clk 0:00:08.4]} 102... Kc3 {[%clk 0:00:12.2]} 103. Rc7 {[%clk 0:00:08.5]}
103... Kc4 {[%clk 0:00:12.8]} 104. Rc8 {[%clk 0:00:08.8]} 104... Kb4 {[%clk
0:00:12]} 105. Kd3 {[%clk 0:00:08.1]} 105... Kb5 {[%clk 0:00:11.9]} 106. Ke4
{[%clk 0:00:07.8]} 106... Kb4 {[%clk 0:00:11.8]} 107. Kd5 {[%clk 0:00:07.4]}
107... d3 {[%clk 0:00:12.1]} 108. Rxc5 {[%clk 0:00:06.5]} 108... d2 {[%clk
0:00:12.5]} 109. Rc4+ {[%clk 0:00:06.8]} 109... Kb3 {[%clk 0:00:13.1]} 110. Rd4
{[%clk 0:00:07.3]} 110... Kc2 {[%clk 0:00:14]} 111. Ke4 {[%clk 0:00:07.8]}
111... d1=Q {[%clk 0:00:14.1]} 112. Rxd1 {[%clk 0:00:08.7]} 112... Kxd1 {[%clk
0:00:15]} 1/2-1/2

[Event "*** Titled Tuesday Blitz"]
[Site "Chess.com"]
[Date "2020.04.21"]
[Round "8"]
[White "Kimster98"]
[Black "Shazuli9878"]
[Result "1-0"]
[WhiteElo "2542"]
[BlackElo "2401"]
[TimeControl "180+1"]
[EndTime "11:42:07 PDT"]
[Termination "Kimster98 won by resignation"]

1. d4 {[%clk 0:02:46.4]} 1... Nf6 {[%clk 0:02:59.2]} 2. Bf4 {[%clk 0:02:46.9]}
2... e6 {[%clk 0:03:00.1]} 3. e3 {[%clk 0:02:42.3]} 3... c5 {[%clk 0:03:00.6]}
4. Nf3 {[%clk 0:02:39.9]} 4... Nc6 {[%clk 0:03:00.7]} 5. c3 {[%clk 0:02:33]}
5... b6 {[%clk 0:03:00.3]} 6. Nbd2 {[%clk 0:02:31.3]} 6... Bb7 {[%clk
0:03:00.6]} 7. Bd3 {[%clk 0:02:29.3]} 7... d5 {[%clk 0:02:57.7]} 8. h3 {[%clk
0:02:24.9]} 8... Bd6 {[%clk 0:02:57.4]} 9. Ne5 {[%clk 0:02:24.8]} 9... O-O
{[%clk 0:02:57.4]} 10. Bg3 {[%clk 0:02:11.1]} 10... Qc7 {[%clk 0:02:48.1]} 11.
f4 {[%clk 0:02:10]} 11... Nd7 {[%clk 0:02:42.2]} 12. Qh5 {[%clk 0:01:58.4]}
12... f5 {[%clk 0:02:25.4]} 13. Bh4 {[%clk 0:01:44]} 13... Nf6 {[%clk 0:02:21]}
14. Qe2 {[%clk 0:01:40.9]} 14... Ne4 {[%clk 0:02:17.3]} 15. Ndf3 {[%clk
0:01:38.6]} 15... Be7 {[%clk 0:02:11]} 16. Bxe7 {[%clk 0:01:37.6]} 16... Qxe7
{[%clk 0:02:09.8]} 17. Nxc6 {[%clk 0:01:37.6]} 17... Bxc6 {[%clk 0:02:09.7]} 18.
Bxe4 {[%clk 0:01:38]} 18... fxe4 {[%clk 0:02:06.1]} 19. Ne5 {[%clk 0:01:37.9]}
19... Qh4+ {[%clk 0:02:01.8]} 20. Qf2 {[%clk 0:01:37.2]} 20... Qxf2+ {[%clk
0:02:01.4]} 21. Kxf2 {[%clk 0:01:38.1]} 21... Bb5 {[%clk 0:02:01.6]} 22. Ke1
{[%clk 0:01:05]} 22... Rac8 {[%clk 0:01:45.4]} 23. Kd2 {[%clk 0:01:04.2]} 23...
c4 {[%clk 0:01:32.2]} 24. h4 {[%clk 0:00:27.4]} 24... Be8 {[%clk 0:01:25.6]} 25.
h5 {[%clk 0:00:26.9]} 25... Rc7 {[%clk 0:01:20.3]} 26. g4 {[%clk 0:00:25.6]}
26... Ba4 {[%clk 0:01:15.7]} 27. Rab1 {[%clk 0:00:20.4]} 27... Rfc8 {[%clk
0:01:13.7]} 28. h6 {[%clk 0:00:15.2]} 28... Be8 {[%clk 0:01:09.1]} 29. hxg7
{[%clk 0:00:15.1]} 29... Rxg7 {[%clk 0:01:08.6]} 30. Rbg1 {[%clk 0:00:15.2]}
30... Kh8 {[%clk 0:00:59.2]} 31. Rh6 {[%clk 0:00:12.1]} 31... Re7 {[%clk
0:00:47.1]} 32. Rgh1 {[%clk 0:00:11.7]} 32... Kg8 {[%clk 0:00:46.8]} 33. g5
{[%clk 0:00:10.5]} 33... Rcc7 {[%clk 0:00:43.9]} 34. g6 {[%clk 0:00:08.9]} 34...
Bxg6 {[%clk 0:00:41.5]} 35. Nxg6 {[%clk 0:00:09]} 35... hxg6 {[%clk 0:00:41.6]}
36. Rxg6+ {[%clk 0:00:07.9]} 36... Kf7 {[%clk 0:00:41.5]} 37. Rhh6 {[%clk
0:00:07.5]} 37... Rc6 {[%clk 0:00:38.7]} 38. f5 {[%clk 0:00:06.8]} 38... b5
{[%clk 0:00:36.8]} 39. Rf6+ {[%clk 0:00:05.6]} 39... Ke8 {[%clk 0:00:31.8]} 40.
fxe6 {[%clk 0:00:06.1]} 40... Rg7 {[%clk 0:00:31.6]} 41. Rh8+ {[%clk 0:00:04.7]}
41... Ke7 {[%clk 0:00:31.7]} 42. Rf7+ {[%clk 0:00:05.2]} 42... Rxf7 {[%clk
0:00:31.4]} 43. exf7 {[%clk 0:00:06.1]} 43... Kxf7 {[%clk 0:00:31.7]} 44. Rh7+
{[%clk 0:00:06.6]} 44... Ke6 {[%clk 0:00:29.8]} 45. Rxa7 {[%clk 0:00:07.5]}
45... Rb6 {[%clk 0:00:29.7]} 46. b4 {[%clk 0:00:06.9]} 46... Kd6 {[%clk
0:00:28.1]} 47. a4 {[%clk 0:00:06.8]} 47... bxa4 {[%clk 0:00:28]} 48. Rxa4
{[%clk 0:00:07.7]} 48... Kc6 {[%clk 0:00:27.5]} 49. Ra5 {[%clk 0:00:08]} 49...
Rb8 {[%clk 0:00:27.3]} 50. Ra6+ {[%clk 0:00:08.4]} 50... Kd7 {[%clk 0:00:26.6]}
51. Ra7+ {[%clk 0:00:06.9]} 51... Kc6 {[%clk 0:00:26.1]} 52. Ra6+ {[%clk
0:00:07.5]} 52... Kd7 {[%clk 0:00:26.1]} 53. Rf6 {[%clk 0:00:06.7]} 53... Rh8
{[%clk 0:00:25.7]} 54. Ke2 {[%clk 0:00:06.3]} 54... Rh2+ {[%clk 0:00:24.9]} 55.
Rf2 {[%clk 0:00:06.9]} 55... Rh1 {[%clk 0:00:25]} 56. Rg2 {[%clk 0:00:06.9]}
56... Ra1 {[%clk 0:00:24.3]} 57. Rg7+ {[%clk 0:00:06.6]} 57... Kc6 {[%clk
0:00:24.4]} 58. Rg6+ {[%clk 0:00:07.1]} 58... Kd7 {[%clk 0:00:24.3]} 59. Rg5
{[%clk 0:00:07.4]} 59... Kc6 {[%clk 0:00:23.6]} 60. b5+ {[%clk 0:00:07.9]} 60...
Kd6 {[%clk 0:00:23.3]} 61. Rg6+ {[%clk 0:00:08.4]} 61... Kd7 {[%clk 0:00:23.4]}
62. Rg5 {[%clk 0:00:08.9]} 62... Ra2+ {[%clk 0:00:22.4]} 63. Kd1 {[%clk
0:00:08.7]} 63... Kd6 {[%clk 0:00:22.7]} 64. Rg6+ {[%clk 0:00:09]} 64... Kd7
{[%clk 0:00:22.3]} 65. Rg5 {[%clk 0:00:09.6]} 65... Kd6 {[%clk 0:00:22.4]} 66.
Rg6+ {[%clk 0:00:10.2]} 66... Kd7 {[%clk 0:00:22.6]} 67. b6 {[%clk 0:00:10.7]}
67... Rb2 {[%clk 0:00:21.6]} 68. Kc1 {[%clk 0:00:11.1]} 68... Rb3 {[%clk
0:00:20.5]} 69. Kc2 {[%clk 0:00:11.6]} 69... Rb5 {[%clk 0:00:20.7]} 70. Kc1
{[%clk 0:00:09.7]} 70... Rb3 {[%clk 0:00:20.6]} 71. Kc2 {[%clk 0:00:10.3]} 71...
Rb5 {[%clk 0:00:20.7]} 72. Rf6 {[%clk 0:00:10.6]} 72... Ke7 {[%clk 0:00:18.3]}
73. Rc6 {[%clk 0:00:09.6]} 73... Kd7 {[%clk 0:00:17.7]} 74. Rc5 {[%clk
0:00:10.1]} 74... Rxb6 {[%clk 0:00:07.4]} 75. Rxd5+ {[%clk 0:00:10.1]} 75... Kc7
{[%clk 0:00:06.5]} 76. Rc5+ {[%clk 0:00:10.5]} 76... Kd6 {[%clk 0:00:06.9]} 77.
Rxc4 {[%clk 0:00:10.6]} 77... Ra6 {[%clk 0:00:07.8]} 78. Kb3 {[%clk 0:00:09.9]}
78... Ra1 {[%clk 0:00:06.9]} 79. Kc2 {[%clk 0:00:10.3]} 79... Re1 {[%clk
0:00:06.5]} 80. Kd2 {[%clk 0:00:10.6]} 80... Ra1 {[%clk 0:00:07.4]} 81. Rc5
{[%clk 0:00:10.9]} 81... Ra2+ {[%clk 0:00:07.6]} 82. Kd1 {[%clk 0:00:11.4]}
82... Ra1+ {[%clk 0:00:07.8]} 83. Kd2 {[%clk 0:00:12]} 83... Ra2+ {[%clk
0:00:08.1]} 84. Ke1 {[%clk 0:00:12.6]} 84... Rc2 {[%clk 0:00:07.8]} 85. c4
{[%clk 0:00:12]} 85... Rc3 {[%clk 0:00:06.2]} 86. Kd2 {[%clk 0:00:11.9]} 86...
Rd3+ {[%clk 0:00:06.1]} 87. Ke2 {[%clk 0:00:12.5]} 87... Rc3 {[%clk 0:00:06.7]}
88. Rd5+ {[%clk 0:00:12.8]} 88... Kc6 {[%clk 0:00:06.8]} 89. Rc5+ {[%clk
0:00:13.4]} 89... Kd6 {[%clk 0:00:07.1]} 90. Rd5+ {[%clk 0:00:13.9]} 90... Kc6
{[%clk 0:00:07.4]} 91. Re5 {[%clk 0:00:14.4]} 91... Rxc4 {[%clk 0:00:07.1]} 92.
Rxe4 {[%clk 0:00:14.9]} 92... Kd5 {[%clk 0:00:07.5]} 93. Re5+ {[%clk 0:00:15.3]}
93... Kd6 {[%clk 0:00:08.4]} 94. Kf3 {[%clk 0:00:16]} 94... Rc1 {[%clk 0:00:09]}
95. Ke4 {[%clk 0:00:16.5]} 95... Rh1 {[%clk 0:00:09.1]} 96. Rd5+ {[%clk
0:00:17.1]} 96... Kc6 {[%clk 0:00:09.1]} 97. Rc5+ {[%clk 0:00:17.1]} 97... Kd6
{[%clk 0:00:09.2]} 98. Rg5 {[%clk 0:00:16.4]} 98... Rh4+ {[%clk 0:00:09]} 99.
Kd3 {[%clk 0:00:17]} 99... Rh1 {[%clk 0:00:09.9]} 100. Rg6+ {[%clk 0:00:16.7]}
100... Kd7 {[%clk 0:00:09.8]} 101. d5 {[%clk 0:00:17.1]} 101... Rd1+ {[%clk
0:00:09.8]} 102. Ke4 {[%clk 0:00:17.4]} 102... Ra1 {[%clk 0:00:10.7]} 103. Ke5
{[%clk 0:00:17.6]} 1-0

[Event "*** Titled Tuesday Blitz"]
[Site "Chess.com"]
[Date "2020.04.21"]
[Round "8"]
[White "Anton_Demchenko"]
[Black "Oleksandr_Bortnyk"]
[Result "1/2-1/2"]
[WhiteElo "2864"]
[BlackElo "3034"]
[TimeControl "180+1"]
[EndTime "11:42:15 PDT"]
[Termination "Game drawn by repetition"]

1. d4 {[%clk 0:03:00.9]} 1... d6 {[%clk 0:02:57.2]} 2. Nf3 {[%clk 0:02:57.9]}
2... Nf6 {[%clk 0:02:58.1]} 3. Nc3 {[%clk 0:02:56.8]} 3... g6 {[%clk 0:02:58.7]}
4. e4 {[%clk 0:02:56.3]} 4... Bg7 {[%clk 0:02:55.6]} 5. Be2 {[%clk 0:02:56.6]}
5... a6 {[%clk 0:02:46.7]} 6. O-O {[%clk 0:02:55.8]} 6... b5 {[%clk 0:02:37.5]}
7. e5 {[%clk 0:02:48.7]} 7... dxe5 {[%clk 0:02:38.4]} 8. dxe5 {[%clk 0:02:40.4]}
8... Qxd1 {[%clk 0:02:39.3]} 9. Rxd1 {[%clk 0:02:39.5]} 9... Nfd7 {[%clk
0:02:39.8]} 10. Nd5 {[%clk 0:02:29]} 10... Ra7 {[%clk 0:02:38.3]} 11. Be3 {[%clk
0:02:14.8]} 11... c5 {[%clk 0:02:36.8]} 12. a4 {[%clk 0:01:38.1]} 12... bxa4
{[%clk 0:02:30.4]} 13. c3 {[%clk 0:01:29.2]} 13... Nc6 {[%clk 0:02:19.8]} 14. e6
{[%clk 0:01:29.2]} 14... fxe6 {[%clk 0:02:16.8]} 15. Nf4 {[%clk 0:01:29.4]}
15... e5 {[%clk 0:01:53.9]} 16. Ne6 {[%clk 0:01:21.3]} 16... Bf6 {[%clk
0:01:54.2]} 17. Nxc5 {[%clk 0:00:44.3]} 17... Nxc5 {[%clk 0:01:52.4]} 18. Bxc5
{[%clk 0:00:45.2]} 18... Ra8 {[%clk 0:01:49.3]} 19. Rxa4 {[%clk 0:00:44.5]}
19... Kf7 {[%clk 0:01:44.9]} 20. Nd2 {[%clk 0:00:31.5]} 20... Rd8 {[%clk
0:01:25.8]} 21. Ne4 {[%clk 0:00:27.8]} 21... Rxd1+ {[%clk 0:01:26.7]} 22. Bxd1
{[%clk 0:00:28.4]} 22... Be6 {[%clk 0:01:27.6]} 23. Be2 {[%clk 0:00:23.5]} 23...
a5 {[%clk 0:01:23]} 24. Bb5 {[%clk 0:00:18.3]} 24... Rd8 {[%clk 0:01:13.3]} 25.
Ra1 {[%clk 0:00:16.5]} 25... Nb8 {[%clk 0:01:00.6]} 26. f3 {[%clk 0:00:16.6]}
26... Rd5 {[%clk 0:00:37.5]} 27. c4 {[%clk 0:00:14.7]} 27... Rd3 {[%clk
0:00:37.2]} 28. Rxa5 {[%clk 0:00:13.4]} 28... Rd1+ {[%clk 0:00:31.5]} 29. Kf2
{[%clk 0:00:13.6]} 29... Rb1 {[%clk 0:00:29.1]} 30. Ba3 {[%clk 0:00:12.6]} 30...
Nd7 {[%clk 0:00:26.8]} 31. Bxd7 {[%clk 0:00:12.8]} 31... Bxd7 {[%clk 0:00:27]}
32. Ra7 {[%clk 0:00:13.6]} 32... Bc6 {[%clk 0:00:21.5]} 33. Nxf6 {[%clk
0:00:12.8]} 33... Kxf6 {[%clk 0:00:21.6]} 34. Bxe7+ {[%clk 0:00:12.4]} 34... Ke6
{[%clk 0:00:19.7]} 35. Ba3 {[%clk 0:00:13.3]} 35... Rc1 {[%clk 0:00:19.6]} 36.
Rxh7 {[%clk 0:00:12.6]} 36... Rxc4 {[%clk 0:00:19]} 37. Rg7 {[%clk 0:00:11.7]}
37... Rc2+ {[%clk 0:00:19.5]} 38. Kg3 {[%clk 0:00:11.7]} 38... Kf6 {[%clk
0:00:18.4]} 39. Rc7 {[%clk 0:00:11.9]} 39... Ke6 {[%clk 0:00:05.2]} 40. h4
{[%clk 0:00:11.8]} 40... Rc4 {[%clk 0:00:04.4]} 41. Rg7 {[%clk 0:00:11]} 41...
Kf6 {[%clk 0:00:04.5]} 42. Rc7 {[%clk 0:00:11.3]} 42... Ke6 {[%clk 0:00:04.6]}
43. Bf8 {[%clk 0:00:10.8]} 43... Rc2 {[%clk 0:00:03.6]} 44. Bh6 {[%clk
0:00:10.7]} 44... Kd6 {[%clk 0:00:03]} 45. Rg7 {[%clk 0:00:10.3]} 45... Be8
{[%clk 0:00:02.5]} 46. Rb7 {[%clk 0:00:09.2]} 46... Bc6 {[%clk 0:00:02]} 47. Rb8
{[%clk 0:00:08.7]} 47... e4 {[%clk 0:00:02.1]} 48. fxe4 {[%clk 0:00:06.9]} 48...
Bxe4 {[%clk 0:00:03]} 49. Kf4 {[%clk 0:00:04.7]} 49... Bxg2 {[%clk 0:00:03.2]}
50. Rg8 {[%clk 0:00:05]} 50... Rc4+ {[%clk 0:00:02.8]} 51. Ke3 {[%clk
0:00:03.9]} 51... Be4 {[%clk 0:00:02.6]} 52. Bg5 {[%clk 0:00:03.8]} 52... Bf5
{[%clk 0:00:02.7]} 53. Rf8 {[%clk 0:00:03.8]} 53... Re4+ {[%clk 0:00:02.7]} 54.
Kd2 {[%clk 0:00:03.9]} 54... Rb4 {[%clk 0:00:03.6]} 55. Kc3 {[%clk 0:00:03.8]}
55... Rb7 {[%clk 0:00:03.3]} 56. h5 {[%clk 0:00:03.9]} 56... Rc7+ {[%clk
0:00:02.2]} 57. Kd4 {[%clk 0:00:04.4]} 57... Ke6 {[%clk 0:00:02]} 58. h6 {[%clk
0:00:04.6]} 58... Rd7+ {[%clk 0:00:02.3]} 59. Ke3 {[%clk 0:00:05]} 59... Rd3+
{[%clk 0:00:02.5]} 60. Kf2 {[%clk 0:00:05.4]} 60... Rh3 {[%clk 0:00:03]} 61. Be3
{[%clk 0:00:04.9]} 61... Be4 {[%clk 0:00:02.6]} 62. Re8+ {[%clk 0:00:04.5]}
62... Kf5 {[%clk 0:00:02.7]} 63. Rf8+ {[%clk 0:00:05.1]} 63... Ke6 {[%clk
0:00:02.4]} 64. b4 {[%clk 0:00:05.6]} 64... Bd5 {[%clk 0:00:02.1]} 65. b5 {[%clk
0:00:05.6]} 65... Rh2+ {[%clk 0:00:02]} 66. Kg3 {[%clk 0:00:05.4]} 66... Rh1
{[%clk 0:00:02.6]} 67. b6 {[%clk 0:00:05.3]} 67... g5 {[%clk 0:00:01.9]} 68.
Re8+ {[%clk 0:00:04.6]} 68... Kf5 {[%clk 0:00:02]} 69. Rf8+ {[%clk 0:00:05.1]}
69... Kg6 {[%clk 0:00:02.5]} 70. Re8 {[%clk 0:00:04.5]} 70... Kxh6 {[%clk
0:00:01.9]} 71. Re5 {[%clk 0:00:04.1]} 71... Bb7 {[%clk 0:00:02]} 72. Bxg5+
{[%clk 0:00:04.2]} 72... Kg6 {[%clk 0:00:02.4]} 73. Be3 {[%clk 0:00:05.1]} 73...
Rb1 {[%clk 0:00:02.6]} 74. Re7 {[%clk 0:00:05.2]} 74... Bd5 {[%clk 0:00:02.7]}
75. Rd7 {[%clk 0:00:05.4]} 75... Bh1 {[%clk 0:00:02.4]} 76. Kf4 {[%clk
0:00:05.4]} 76... Kf6 {[%clk 0:00:02.7]} 77. Rd6+ {[%clk 0:00:05.6]} 77... Ke7
{[%clk 0:00:03.2]} 78. Rh6 {[%clk 0:00:06.3]} 78... Bg2 {[%clk 0:00:02.4]} 79.
Bc5+ {[%clk 0:00:06.1]} 79... Kd7 {[%clk 0:00:02.1]} 80. Rd6+ {[%clk 0:00:05.9]}
80... Kc8 {[%clk 0:00:02.4]} 81. Rg6 {[%clk 0:00:06.7]} 81... Bd5 {[%clk
0:00:01.4]} 82. Ke5 {[%clk 0:00:07.2]} 82... Bf3 {[%clk 0:00:01.9]} 83. Kd6
{[%clk 0:00:07.6]} 83... Rd1+ {[%clk 0:00:02]} 84. Ke5 {[%clk 0:00:08.1]} 84...
Kb7 {[%clk 0:00:02.5]} 85. Rg7+ {[%clk 0:00:08.2]} 85... Ka6 {[%clk 0:00:01.9]}
86. Ra7+ {[%clk 0:00:08.6]} 86... Kb5 {[%clk 0:00:02.5]} 87. Be3 {[%clk
0:00:08.8]} 87... Bc6 {[%clk 0:00:02.3]} 88. b7 {[%clk 0:00:08.6]} 88... Rd8
{[%clk 0:00:02.9]} 89. Ke6 {[%clk 0:00:06.6]} 89... Rb8 {[%clk 0:00:03.1]} 90.
Kd6 {[%clk 0:00:06.4]} 90... Rxb7 {[%clk 0:00:03.2]} 91. Ra1 {[%clk 0:00:06.6]}
91... Rd7+ {[%clk 0:00:04.1]} 92. Ke5 {[%clk 0:00:06.4]} 92... Re7+ {[%clk
0:00:04.5]} 93. Kd4 {[%clk 0:00:06.2]} 93... Re4+ {[%clk 0:00:05.4]} 94. Kd3
{[%clk 0:00:06.6]} 94... Rb4 {[%clk 0:00:06.3]} 95. Rc1 {[%clk 0:00:06]} 95...
Be4+ {[%clk 0:00:06.2]} 96. Kd2 {[%clk 0:00:06.4]} 96... Rb2+ {[%clk 0:00:06]}
97. Kc3 {[%clk 0:00:07]} 97... Rb4 {[%clk 0:00:06]} 98. Kd2 {[%clk 0:00:06]}
98... Rb3 {[%clk 0:00:06.4]} 99. Rg1 {[%clk 0:00:04.8]} 99... Kc4 {[%clk
0:00:05.4]} 100. Rg7 {[%clk 0:00:03]} 100... Rb2+ {[%clk 0:00:05.1]} 101. Kc1
{[%clk 0:00:02.8]} 101... Ra2 {[%clk 0:00:03.6]} 102. Rd7 {[%clk 0:00:02.2]}
102... Bd5 {[%clk 0:00:03.7]} 103. Rd8 {[%clk 0:00:01.8]} 103... Kc3 {[%clk
0:00:02.3]} 104. Bd2+ {[%clk 0:00:01.3]} 104... Kc4 {[%clk 0:00:01.7]} 105. Rc8+
{[%clk 0:00:01.3]} 105... Kd3 {[%clk 0:00:01.8]} 106. Rc3+ {[%clk 0:00:01.9]}
106... Kd4 {[%clk 0:00:02.1]} 107. Rg3 {[%clk 0:00:01.7]} 107... Be4 {[%clk
0:00:02.5]} 108. Be3+ {[%clk 0:00:02.1]} 108... Kc4 {[%clk 0:00:02.6]} 109. Bg5
{[%clk 0:00:02.8]} 109... Bd3 {[%clk 0:00:02.7]} 110. Kd1 {[%clk 0:00:03.3]}
110... Ra1+ {[%clk 0:00:02.6]} 111. Kd2 {[%clk 0:00:03.5]} 111... Ra2+ {[%clk
0:00:03.5]} 112. Kd1 {[%clk 0:00:03.9]} 112... Be4 {[%clk 0:00:03.5]} 113. Rg4
{[%clk 0:00:04]} 113... Kd3 {[%clk 0:00:03.3]} 114. Rg3+ {[%clk 0:00:04.4]}
114... Kd4 {[%clk 0:00:03.8]} 115. Bf6+ {[%clk 0:00:04.4]} 115... Kd5 {[%clk
0:00:04.2]} 116. Rg5+ {[%clk 0:00:04.3]} 116... Kc4 {[%clk 0:00:04.1]} 117. Rg3
{[%clk 0:00:05.2]} 117... Bd3 {[%clk 0:00:03.9]} 118. Ke1 {[%clk 0:00:05.5]}
118... Re2+ {[%clk 0:00:03.4]} 119. Kd1 {[%clk 0:00:05.9]} 119... Rf2 {[%clk
0:00:04]} 120. Rg4+ {[%clk 0:00:06.2]} 120... Kb3 {[%clk 0:00:03.8]} 121. Rg3
{[%clk 0:00:06.1]} 121... Kc4 {[%clk 0:00:03.6]} 122. Rg4+ {[%clk 0:00:06.6]}
122... Kb5 {[%clk 0:00:03.6]} 123. Rg5+ {[%clk 0:00:07]} 123... Kc4 {[%clk
0:00:03.5]} 124. Rg4+ {[%clk 0:00:07.2]} 1/2-1/2